[Event "Open NK Rapid 2025"]
[Site "Helmond, Netherlands"]
[Date "2025.05.03"]
[Round "6.16"]
[White "Margaryan, Artur"]
[Black "Nies, Levi"]
[Result "1/2-1/2"]
[TimeControl "15+5"]
[WhiteFideId "13304348"]
[BlackFideId "1061275"]
[WhiteElo "2100"]
[BlackElo "1828"]

1. d4 {[%clk 00:14:59]} {[%emt 00:00:11]} d5 {[%clk 00:15:07]} {[%emt
00:00:04]} 2. c4 {[%clk 00:15:02]} {[%emt 00:00:02]} e6 {[%clk 00:15:11]}
{[%emt 00:00:01]} 3. Nc3 {[%clk 00:15:06]} Nf6 {[%clk 00:15:15]} 4. cxd5 {[%clk
00:15:10]} {[%emt 00:00:01]} exd5 {[%clk 00:15:18]} {[%emt 00:00:02]} 5. Bg5
{[%clk 00:15:14]} {[%emt 00:00:01]} c6 {[%clk 00:15:22]} {[%emt 00:00:01]} 6.
e3 {[%clk 00:15:18]} Be7 {[%clk 00:15:25]} {[%emt 00:00:02]} 7. Bd3 {[%clk
00:15:22]} {[%emt 00:00:01]} O-O {[%clk 00:15:27]} {[%emt 00:00:04]} 8. Qc2
{[%clk 00:15:26]} {[%emt 00:00:01]} Nbd7 {[%clk 00:15:29]} {[%emt 00:00:02]} 9.
Nf3 {[%clk 00:15:28]} {[%emt 00:00:03]} Re8 {[%clk 00:15:21]} {[%emt 00:00:13]}
10. O-O {[%clk 00:15:27]} {[%emt 00:00:05]} Nf8 {[%clk 00:15:05]} {[%emt
00:00:21]} 11. h3 {[%clk 00:15:31]} {[%emt 00:00:02]} Ne4 {[%clk 00:13:26]}
{[%emt 00:01:45]} 12. Bf4 {[%clk 00:15:32]} {[%emt 00:00:03]} Nf6 {[%clk
00:12:08]} {[%emt 00:01:24]} 13. Rab1 {[%clk 00:15:29]} {[%emt 00:00:07]} Ng6
{[%clk 00:11:59]} {[%emt 00:00:14]} 14. b4 {[%clk 00:11:22]} {[%emt 00:04:12]}
Nxf4 {[%clk 00:11:32]} {[%emt 00:00:32]} 15. exf4 {[%clk 00:11:09]} {[%emt
00:00:17]} Bd6 {[%clk 00:11:16]} {[%emt 00:00:22]} 16. Ne5 {[%clk 00:11:13]}
{[%emt 00:00:01]} Qb6 {[%clk 00:09:24]} {[%emt 00:01:58]} 17. Rfd1 {[%clk
00:10:51]} {[%emt 00:00:27]} Be6 {[%clk 00:07:26]} {[%emt 00:02:02]} 18. Na4
{[%clk 00:09:48]} {[%emt 00:01:08]} Qc7 {[%clk 00:06:58]} {[%emt 00:00:33]} 19.
Nc5 {[%clk 00:09:43]} {[%emt 00:00:10]} a5 {[%clk 00:04:56]} {[%emt 00:02:08]}
20. b5 {[%clk 00:07:02]} {[%emt 00:02:46]} cxb5 {[%clk 00:03:52]} {[%emt
00:01:09]} 21. Rxb5 {[%clk 00:07:00]} {[%emt 00:00:07]} Rec8 {[%clk 00:03:18]}
{[%emt 00:00:39]} 22. Rxb7 {[%clk 00:05:08]} {[%emt 00:01:56]} Qxb7 {[%clk
00:03:19]} {[%emt 00:00:04]} 23. Nxb7 {[%clk 00:05:12]} Rxc2 {[%clk 00:03:23]}
{[%emt 00:00:02]} 24. Bxc2 {[%clk 00:05:15]} {[%emt 00:00:01]} Bb4 {[%clk
00:02:58]} {[%emt 00:00:30]} 25. f5 {[%clk 00:04:03]} {[%emt 00:01:17]} Bd7
{[%clk 00:01:41]} {[%emt 00:01:22]} 26. g4 {[%clk 00:03:03]} {[%emt 00:01:06]}
Rc8 {[%clk 00:01:03]} {[%emt 00:00:43]} 27. Bd3 {[%clk 00:02:47]} {[%emt
00:00:20]} Ba4 {[%clk 00:01:05]} {[%emt 00:00:04]} 28. Rb1 {[%clk 00:02:36]}
{[%emt 00:00:16]} h6 {[%clk 00:00:52]} {[%emt 00:00:18]} 29. a3 {[%clk
00:02:00]} {[%emt 00:00:41]} Bxa3 {[%clk 00:00:33]} {[%emt 00:00:24]} 30. Nxa5
{[%clk 00:01:55]} {[%emt 00:00:10]} Rc1+ {[%clk 00:00:15]} {[%emt 00:00:23]} 31.
Rxc1 {[%clk 00:01:57]} {[%emt 00:00:02]} Bxc1 {[%clk 00:00:19]} 32. Kg2 {[%clk
00:01:34]} {[%emt 00:00:28]} Bb2 {[%clk 00:00:09]} {[%emt 00:00:16]} 33. Nac6
{[%clk 00:01:37]} Nd7 {[%clk 00:00:07]} {[%emt 00:00:07]} 34. Ne7+ {[%clk
00:01:22]} {[%emt 00:00:20]} Kf8 {[%clk 00:00:08]} {[%emt 00:00:05]} 35. Nxd5
{[%clk 00:00:36]} {[%emt 00:00:51]} Bxd4 {[%clk 00:00:10]} {[%emt 00:00:02]} 36.
Nxd7+ {[%clk 00:00:36]} {[%emt 00:00:05]} Bxd7 {[%clk 00:00:15]} 37. Nf4 {[%clk
00:00:28]} {[%emt 00:00:13]} Bc6+ {[%clk 00:00:18]} {[%emt 00:00:03]} 38. f3
{[%clk 00:00:30]} {[%emt 00:00:02]} Ke7 {[%clk 00:00:18]} {[%emt 00:00:04]} 39.
Ne2 {[%clk 00:00:32]} {[%emt 00:00:03]} Be5 {[%clk 00:00:20]} {[%emt 00:00:04]}
40. Be4 {[%clk 00:00:36]} {[%emt 00:00:01]} Bb5 {[%clk 00:00:22]} {[%emt
00:00:03]} 41. f4 {[%clk 00:00:16]} {[%emt 00:00:25]} Bb2 {[%clk 00:00:07]}
{[%emt 00:00:19]} 42. Ng3 {[%clk 00:00:18]} {[%emt 00:00:03]} Kd6 {[%clk
00:00:07]} {[%emt 00:00:06]} 43. Kf3 {[%clk 00:00:18]} {[%emt 00:00:05]} Bc6
{[%clk 00:00:08]} {[%emt 00:00:04]} 44. Bxc6 {[%clk 00:00:15]} {[%emt
00:00:07]} Kxc6 {[%clk 00:00:12]} {[%emt 00:00:01]} 45. Ke4 {[%clk 00:00:17]}
{[%emt 00:00:03]} Kd6 {[%clk 00:00:16]} {[%emt 00:00:02]} 46. h4 {[%clk
00:00:13]} {[%emt 00:00:09]} Bc3 {[%clk 00:00:19]} {[%emt 00:00:02]} 47. Nh5
{[%emt 00:00:26]} Be1 {[%clk 00:00:08]} 48. Nxg7 {[%clk 00:00:10]} {[%emt
00:00:02]} Bxh4 {[%clk 00:00:12]} 49. Nh5 {[%clk 00:00:15]} Bd8 {[%clk
00:00:15]} {[%emt 00:00:03]} 50. f6 {[%clk 00:00:16]} {[%emt 00:00:03]} Ke6
{[%clk 00:00:16]} {[%emt 00:00:04]} 51. g5 {[%clk 00:00:19]} {[%emt 00:00:03]}
hxg5 {[%clk 00:00:13]} {[%emt 00:00:08]} 52. fxg5 {[%clk 00:00:23]} {[%emt
00:00:01]} Ba5 {[%clk 00:00:17]} 53. Ng7+ {[%clk 00:00:26]} {[%emt 00:00:01]}
Kd7 {[%clk 00:00:21]} {[%emt 00:00:02]} 54. Kf5 {[%clk 00:00:31]} Bd2 {[%clk
00:00:23]} {[%emt 00:00:03]} 55. Nh5 {[%clk 00:00:35]} {[%emt 00:00:01]} Ke8
{[%clk 00:00:26]} {[%emt 00:00:02]} 56. Ng3 {[%clk 00:00:38]} {[%emt 00:00:01]}
Kf8 {[%clk 00:00:28]} {[%emt 00:00:03]} 57. Ne4 {[%clk 00:00:42]} Bb4 {[%clk
00:00:31]} {[%emt 00:00:02]} 58. Ke5 {[%clk 00:00:36]} {[%emt 00:00:11]} Ba3
{[%clk 00:00:30]} {[%emt 00:00:08]} 59. Kd5 {[%clk 00:00:39]} Ke8 {[%clk
00:00:31]} {[%emt 00:00:04]} 60. Nd6+ {[%clk 00:00:42]} {[%emt 00:00:03]} Kf8
{[%clk 00:00:35]} {[%emt 00:00:01]} 61. Kc6 {[%clk 00:00:46]} Bc1 {[%clk
00:00:28]} {[%emt 00:00:13]} 62. Ne4 {[%clk 00:00:50]} Ke8 {[%clk 00:00:31]}
{[%emt 00:00:03]} 63. Kc7 {[%clk 00:00:53]} Be3 {[%clk 00:00:33]} {[%emt
00:00:02]} 64. Kc8 {[%clk 00:00:54]} {[%emt 00:00:06]} Bf4 {[%clk 00:00:36]}
{[%emt 00:00:02]} 65. Kb7 {[%clk 00:00:52]} {[%emt 00:00:06]} Kd7 {[%clk
00:00:32]} {[%emt 00:00:10]} 66. Nc5 {[%clk 00:00:48]} {[%emt 00:00:09]} Ke8
{[%clk 00:00:27]} {[%emt 00:00:10]} 67. Ne4 {[%clk 00:00:50]} {[%emt 00:00:02]}
Kd7 {[%clk 00:00:32]} 1/2-1/2

[Event "Open NK Rapid 2025"]
[Site "Helmond, Netherlands"]
[Date "2025.05.03"]
[Round "6.17"]
[White "Darie, Aden"]
[Black "Bekkink, Sereyo"]
[Result "0-1"]
[TimeControl "15+5"]
[WhiteFideId "1094831"]
[BlackFideId "1037161"]
[WhiteElo "1941"]
[BlackElo "2064"]

1. e4 {[%clk 00:15:09]} e5 {[%clk 00:15:10]} {[%emt 00:00:01]} 2. Nf3 {[%clk
00:15:12]} {[%emt 00:00:02]} Nc6 {[%clk 00:15:14]} {[%emt 00:00:01]} 3. d4
{[%clk 00:15:16]} exd4 {[%clk 00:15:17]} {[%emt 00:00:02]} 4. Bc4 {[%clk
00:15:19]} Bc5 {[%clk 00:14:19]} {[%emt 00:01:04]} 5. O-O {[%clk 00:15:16]}
{[%emt 00:00:07]} d6 {[%clk 00:11:10]} {[%emt 00:03:14]} 6. Nbd2 {[%clk
00:15:15]} {[%emt 00:00:06]} Nf6 {[%clk 00:10:50]} {[%emt 00:00:26]} 7. Nb3
{[%clk 00:15:07]} {[%emt 00:00:13]} Bg4 {[%clk 00:09:34]} {[%emt 00:01:21]} 8.
Bg5 {[%clk 00:14:55]} {[%emt 00:00:16]} h6 {[%clk 00:08:11]} {[%emt 00:01:28]}
9. Bh4 {[%clk 00:14:42]} {[%emt 00:00:18]} O-O {[%clk 00:08:15]} {[%emt
00:00:02]} 10. h3 {[%clk 00:14:09]} {[%emt 00:00:37]} Bxf3 {[%clk 00:07:33]}
{[%emt 00:00:47]} 11. Qxf3 {[%clk 00:13:59]} {[%emt 00:00:15]} Ne5 {[%clk
00:07:20]} {[%emt 00:00:19]} 12. Qe2 {[%clk 00:13:57]} {[%emt 00:00:06]} Nxc4
{[%clk 00:06:40]} {[%emt 00:00:45]} 13. Qxc4 {[%clk 00:13:59]} {[%emt
00:00:03]} g5 {[%clk 00:06:41]} {[%emt 00:00:05]} 14. Bg3 {[%clk 00:13:45]}
{[%emt 00:00:18]} Nxe4 {[%clk 00:06:43]} {[%emt 00:00:03]} 15. Rae1 {[%clk
00:13:05]} {[%emt 00:00:45]} Re8 {[%clk 00:05:12]} {[%emt 00:01:37]} 16. Qd3
{[%clk 00:12:03]} {[%emt 00:01:06]} f5 {[%clk 00:03:45]} {[%emt 00:01:33]} 17.
Nxd4 {[%clk 00:11:32]} {[%emt 00:00:35]} Qf6 {[%clk 00:03:34]} {[%emt
00:00:16]} 18. c3 {[%clk 00:11:13]} {[%emt 00:00:24]} Re7 {[%clk 00:02:54]}
{[%emt 00:00:46]} 19. Re2 {[%clk 00:10:55]} {[%emt 00:00:23]} Bxd4 {[%clk
00:02:19]} {[%emt 00:00:40]} 20. cxd4 {[%clk 00:10:37]} {[%emt 00:00:22]} Nxg3
{[%clk 00:01:55]} {[%emt 00:00:30]} 21. fxg3 {[%clk 00:09:54]} {[%emt
00:00:47]} Rxe2 {[%clk 00:01:45]} {[%emt 00:00:16]} 22. Qxe2 {[%clk 00:09:58]}
Qxd4+ {[%clk 00:01:49]} 23. Kh2 {[%clk 00:10:01]} {[%emt 00:00:01]} Qe4 {[%clk
00:01:39]} {[%emt 00:00:15]} 24. Qf2 {[%clk 00:09:50]} {[%emt 00:00:16]} b6
{[%clk 00:01:37]} {[%emt 00:00:07]} 25. Re1 {[%clk 00:09:21]} {[%emt 00:00:35]}
Qd5 {[%clk 00:01:37]} {[%emt 00:00:05]} 26. Re7 {[%clk 00:09:14]} {[%emt
00:00:11]} c5 {[%clk 00:01:25]} {[%emt 00:00:18]} 27. Qe2 {[%clk 00:08:58]}
{[%emt 00:00:21]} Rf8 {[%clk 00:00:44]} {[%emt 00:00:45]} 28. Rxa7 {[%clk
00:08:00]} {[%emt 00:01:03]} f4 {[%clk 00:00:27]} {[%emt 00:00:23]} 29. gxf4
{[%clk 00:07:30]} {[%emt 00:00:35]} Qf5 {[%clk 00:00:31]} 30. Qc4+ {[%clk
00:06:56]} {[%emt 00:00:39]} d5 {[%clk 00:00:35]} 31. Qc3 {[%clk 00:06:52]}
{[%emt 00:00:09]} Qxf4+ {[%clk 00:00:34]} {[%emt 00:00:07]} 32. Kh1 {[%clk
00:06:38]} {[%emt 00:00:19]} Qf1+ {[%clk 00:00:34]} {[%emt 00:00:04]} 33. Kh2
{[%clk 00:06:42]} {[%emt 00:00:01]} Qf4+ {[%clk 00:00:39]} 34. Kh1 {[%clk
00:06:46]} {[%emt 00:00:01]} Qd4 {[%clk 00:00:19]} {[%emt 00:00:24]} 35. Qxd4
{[%clk 00:06:24]} {[%emt 00:00:27]} cxd4 {[%clk 00:00:24]} 36. Ra3 {[%clk
00:06:28]} {[%emt 00:00:02]} Rf1+ {[%clk 00:00:25]} {[%emt 00:00:03]} 37. Kh2
{[%clk 00:06:31]} {[%emt 00:00:02]} Rd1 {[%clk 00:00:29]} {[%emt 00:00:01]} 38.
Rb3 {[%clk 00:06:28]} {[%emt 00:00:09]} d3 {[%clk 00:00:33]} {[%emt 00:00:01]}
39. a3 {[%clk 00:06:22]} {[%emt 00:00:11]} Kf7 {[%clk 00:00:34]} {[%emt
00:00:04]} 40. Kg3 {[%clk 00:06:25]} {[%emt 00:00:02]} Ke6 {[%clk 00:00:36]}
{[%emt 00:00:02]} 41. Kf3 {[%clk 00:06:12]} {[%emt 00:00:18]} Ke5 {[%clk
00:00:36]} {[%emt 00:00:06]} 42. Rxb6 {[%clk 00:05:57]} {[%emt 00:00:20]} Re1
{[%clk 00:00:26]} {[%emt 00:00:14]} 0-1

[Event "Open NK Rapid 2025"]
[Site "Helmond, Netherlands"]
[Date "2025.05.03"]
[Round "6.18"]
[White "Grochal, Joey"]
[Black "Van Wamel, Gijs"]
[Result "1-0"]
[TimeControl "15+5"]
[WhiteFideId "1019945"]
[BlackFideId "40102165"]
[WhiteElo "2261"]
[BlackElo "1713"]

1. d4 {[%clk 00:15:09]} Nf6 {[%clk 00:15:06]} {[%emt 00:00:04]} 2. c4 {[%clk
00:15:13]} {[%emt 00:00:02]} c5 {[%clk 00:15:01]} {[%emt 00:00:10]} 3. d5
{[%clk 00:15:16]} {[%emt 00:00:01]} b5 {[%clk 00:14:58]} {[%emt 00:00:08]} 4.
cxb5 {[%clk 00:15:19]} {[%emt 00:00:02]} a5 {[%emt 00:00:03]} 5. bxa6 {[%clk
00:15:22]} Bxa6 {[%clk 00:15:05]} {[%emt 00:00:03]} 6. Nc3 {[%clk 00:15:25]}
{[%emt 00:00:01]} g6 {[%clk 00:15:07]} {[%emt 00:00:03]} 7. Nf3 {[%clk
00:15:23]} {[%emt 00:00:07]} Bg7 {[%clk 00:15:06]} {[%emt 00:00:06]} 8. e4
{[%clk 00:15:26]} {[%emt 00:00:02]} d6 {[%clk 00:15:04]} {[%emt 00:00:07]} 9.
Bxa6 {[%clk 00:15:19]} {[%emt 00:00:11]} Nxa6 {[%clk 00:15:07]} {[%emt
00:00:03]} 10. O-O {[%clk 00:14:56]} {[%emt 00:00:28]} O-O {[%clk 00:15:09]}
{[%emt 00:00:03]} 11. Nd2 {[%clk 00:14:53]} {[%emt 00:00:08]} Qc7 {[%clk
00:14:53]} {[%emt 00:00:20]} 12. Nc4 {[%clk 00:14:54]} {[%emt 00:00:05]} Rfb8
{[%clk 00:14:49]} {[%emt 00:00:09]} 13. a4 {[%clk 00:14:29]} {[%emt 00:00:30]}
Nb4 {[%clk 00:14:47]} {[%emt 00:00:07]} 14. Ra3 {[%clk 00:14:20]} {[%emt
00:00:13]} Nd7 {[%clk 00:14:39]} {[%emt 00:00:13]} 15. Nb5 {[%clk 00:14:17]}
{[%emt 00:00:09]} Qb7 {[%clk 00:14:24]} {[%emt 00:00:20]} 16. Bg5 {[%clk
00:14:00]} {[%emt 00:00:21]} f6 {[%clk 00:13:30]} {[%emt 00:01:00]} 17. Bd2
{[%clk 00:13:33]} {[%emt 00:00:32]} Nb6 {[%clk 00:12:50]} {[%emt 00:00:45]} 18.
Nxb6 {[%clk 00:12:53]} {[%emt 00:00:44]} Qxb6 {[%clk 00:12:49]} {[%emt
00:00:04]} 19. Rg3 {[%clk 00:12:19]} {[%emt 00:00:42]} Na6 {[%clk 00:12:08]}
{[%emt 00:00:46]} 20. h4 {[%clk 00:11:58]} {[%emt 00:00:26]} Rf8 {[%clk
00:09:27]} {[%emt 00:02:46]} 21. h5 {[%clk 00:11:50]} {[%emt 00:00:13]} g5
{[%clk 00:09:24]} {[%emt 00:00:08]} 22. h6 {[%clk 00:11:24]} {[%emt 00:00:31]}
Bxh6 {[%emt 00:00:57]} 23. f4 {[%clk 00:11:18]} Kh8 {[%clk 00:08:09]} {[%emt
00:00:39]} 24. Qh5 {[%clk 00:11:10]} {[%emt 00:00:13]} Bg7 {[%clk 00:07:18]}
{[%emt 00:00:56]} 25. Rh3 {[%clk 00:10:51]} {[%emt 00:00:24]} h6 {[%clk
00:07:18]} {[%emt 00:00:05]} 26. Qg6 {[%clk 00:10:54]} {[%emt 00:00:02]} c4+
{[%clk 00:06:19]} {[%emt 00:01:04]} 27. Be3 {[%clk 00:10:57]} {[%emt 00:00:02]}
Qd8 {[%clk 00:06:22]} {[%emt 00:00:02]} 28. fxg5 {[%clk 00:10:48]} {[%emt
00:00:13]} fxg5 {[%clk 00:06:24]} {[%emt 00:00:03]} 29. Rxh6+ {[%clk 00:10:52]}
{[%emt 00:00:02]} Bxh6 {[%clk 00:06:25]} {[%emt 00:00:03]} 30. Qxh6+ {[%clk
00:10:55]} {[%emt 00:00:02]} Kg8 {[%clk 00:06:28]} {[%emt 00:00:02]} 31. Qg6+
{[%clk 00:10:40]} {[%emt 00:00:21]} 1-0

[Event "Open NK Rapid 2025"]
[Site "Helmond, Netherlands"]
[Date "2025.05.03"]
[Round "6.19"]
[White "Jansz, Wilfred"]
[Black "Baselmans, Luuk"]
[Result "0-1"]
[TimeControl "15+5"]
[WhiteFideId "40107353"]
[BlackFideId "1051008"]
[WhiteElo "1996"]
[BlackElo "2405"]

1. e4 {[%clk 00:15:08]} {[%emt 00:00:01]} c5 {[%clk 00:15:01]} {[%emt
00:00:09]} 2. Nf3 {[%clk 00:15:11]} {[%emt 00:00:02]} Nc6 {[%clk 00:15:05]}
{[%emt 00:00:02]} 3. d4 {[%clk 00:15:14]} {[%emt 00:00:01]} cxd4 {[%clk
00:15:09]} {[%emt 00:00:02]} 4. Nxd4 {[%clk 00:15:17]} {[%emt 00:00:02]} Nf6
{[%clk 00:15:12]} {[%emt 00:00:01]} 5. Nc3 {[%clk 00:15:21]} {[%emt 00:00:02]}
e5 {[%clk 00:15:15]} {[%emt 00:00:02]} 6. Ndb5 {[%clk 00:15:24]} {[%emt
00:00:02]} d6 {[%clk 00:15:18]} 7. Bg5 {[%clk 00:15:27]} {[%emt 00:00:02]} a6
{[%clk 00:15:21]} {[%emt 00:00:02]} 8. Na3 {[%clk 00:15:30]} {[%emt 00:00:03]}
b5 {[%clk 00:15:25]} {[%emt 00:00:01]} 9. Bxf6 {[%clk 00:15:32]} {[%emt
00:00:03]} gxf6 {[%clk 00:15:25]} {[%emt 00:00:05]} 10. Nd5 {[%clk 00:15:34]}
{[%emt 00:00:02]} Bg7 {[%clk 00:15:26]} {[%emt 00:00:04]} 11. c3 {[%clk
00:15:02]} {[%emt 00:00:38]} f5 {[%clk 00:14:45]} {[%emt 00:00:46]} 12. exf5
{[%clk 00:15:05]} {[%emt 00:00:02]} Bxf5 {[%clk 00:14:45]} {[%emt 00:00:05]} 13.
Nc2 {[%clk 00:15:08]} {[%emt 00:00:02]} O-O {[%clk 00:14:25]} {[%emt 00:00:25]}
14. Nce3 {[%clk 00:15:11]} {[%emt 00:00:02]} Be6 {[%clk 00:14:25]} {[%emt
00:00:05]} 15. Bd3 {[%clk 00:15:09]} {[%emt 00:00:07]} f5 {[%clk 00:14:09]}
{[%emt 00:00:20]} 16. Qh5 {[%clk 00:14:50]} {[%emt 00:00:25]} e4 {[%clk
00:14:06]} {[%emt 00:00:08]} 17. Bc2 {[%clk 00:14:43]} {[%emt 00:00:11]} Ne7
{[%clk 00:13:11]} {[%emt 00:01:00]} 18. Bb3 {[%clk 00:14:07]} {[%emt 00:00:42]}
Nxd5 {[%clk 00:11:31]} {[%emt 00:01:45]} 19. Nxd5 {[%clk 00:14:00]} {[%emt
00:00:12]} Kh8 {[%clk 00:11:30]} {[%emt 00:00:06]} 20. Nf4 {[%clk 00:13:19]}
{[%emt 00:00:46]} Bxb3 {[%clk 00:11:21]} {[%emt 00:00:13]} 21. Ng6+ {[%clk
00:12:35]} {[%emt 00:00:50]} Kg8 {[%clk 00:11:24]} {[%emt 00:00:02]} 22. Nxf8
{[%clk 00:12:38]} {[%emt 00:00:02]} Bf7 {[%clk 00:11:16]} {[%emt 00:00:13]} 23.
Qxh7+ {[%clk 00:12:38]} {[%emt 00:00:04]} Kxf8 {[%clk 00:11:19]} {[%emt
00:00:03]} 24. Qxf5 {[%clk 00:12:38]} {[%emt 00:00:05]} Qf6 {[%clk 00:10:49]}
{[%emt 00:00:34]} 25. Qxf6 {[%clk 00:12:31]} {[%emt 00:00:13]} Bxf6 {[%clk
00:10:52]} {[%emt 00:00:01]} 26. h4 {[%clk 00:10:07]} {[%emt 00:02:29]} b4
{[%clk 00:10:44]} {[%emt 00:00:14]} 27. cxb4 {[%clk 00:08:55]} {[%emt
00:01:17]} Bxb2 {[%clk 00:10:42]} {[%emt 00:00:06]} 28. Rd1 {[%clk 00:08:17]}
{[%emt 00:00:43]} Bc3+ {[%clk 00:10:12]} {[%emt 00:00:35]} 29. Kf1 {[%clk
00:08:03]} {[%emt 00:00:19]} Bc4+ {[%clk 00:08:36]} {[%emt 00:01:42]} 30. Kg1
{[%clk 00:08:04]} {[%emt 00:00:04]} Bxb4 {[%clk 00:07:28]} {[%emt 00:01:12]} 31.
h5 {[%clk 00:07:20]} {[%emt 00:00:50]} d5 {[%clk 00:05:54]} {[%emt 00:01:39]}
32. a4 {[%clk 00:05:27]} {[%emt 00:01:59]} Kg7 {[%clk 00:04:28]} {[%emt
00:01:29]} 33. g4 {[%clk 00:04:47]} {[%emt 00:00:46]} Kh6 {[%clk 00:03:48]}
{[%emt 00:00:45]} 34. Kh2 {[%clk 00:03:40]} {[%emt 00:01:12]} Rf8 {[%clk
00:03:43]} {[%emt 00:00:09]} 35. Kg3 {[%clk 00:03:38]} {[%emt 00:00:08]} Rf3+
{[%clk 00:03:30]} {[%emt 00:00:18]} 36. Kg2 {[%clk 00:03:33]} {[%emt 00:00:10]}
Rf8 {[%clk 00:02:23]} {[%emt 00:01:12]} 37. Kg3 {[%clk 00:01:43]} {[%emt
00:01:55]} a5 {[%clk 00:01:37]} {[%emt 00:00:51]} 38. Rh3 {[%clk 00:01:10]}
{[%emt 00:00:38]} Kg5 {[%clk 00:01:20]} {[%emt 00:00:22]} 0-1

[Event "Open NK Rapid 2025"]
[Site "Helmond, Netherlands"]
[Date "2025.05.03"]
[Round "6.20"]
[White "Schleipfenbauer, Bent"]
[Black "Grooten, Herman"]
[Result "0-1"]
[TimeControl "15+5"]
[WhiteFideId "1048759"]
[BlackFideId "1000330"]
[WhiteElo "1992"]
[BlackElo "2219"]

1. e4 {[%clk 00:14:33]} {[%emt 00:00:37]} c5 {[%clk 00:15:09]} {[%emt
00:00:01]} 2. Nf3 {[%clk 00:14:32]} {[%emt 00:00:05]} e6 {[%clk 00:15:13]}
{[%emt 00:00:02]} 3. d4 {[%clk 00:14:36]} {[%emt 00:00:01]} cxd4 {[%clk
00:15:17]} 4. Nxd4 {[%clk 00:14:39]} {[%emt 00:00:02]} a6 {[%clk 00:15:19]}
{[%emt 00:00:03]} 5. Bd3 {[%clk 00:14:41]} {[%emt 00:00:02]} Bc5 {[%clk
00:15:23]} {[%emt 00:00:02]} 6. Be3 {[%clk 00:14:41]} {[%emt 00:00:04]} d6
{[%clk 00:15:16]} {[%emt 00:00:12]} 7. O-O {[%clk 00:13:59]} {[%emt 00:00:47]}
Ne7 {[%clk 00:15:00]} {[%emt 00:00:22]} 8. c3 {[%clk 00:12:07]} {[%emt
00:01:56]} O-O {[%clk 00:14:05]} {[%emt 00:01:01]} 9. a4 {[%clk 00:11:34]}
{[%emt 00:00:38]} e5 {[%clk 00:13:13]} {[%emt 00:00:57]} 10. Nc2 {[%clk
00:11:33]} {[%emt 00:00:06]} Qc7 {[%clk 00:12:45]} {[%emt 00:00:34]} 11. b4
{[%clk 00:10:02]} {[%emt 00:01:35]} Bxe3 {[%clk 00:12:47]} {[%emt 00:00:02]} 12.
Nxe3 {[%clk 00:10:05]} {[%emt 00:00:02]} Be6 {[%clk 00:12:38]} {[%emt
00:00:14]} 13. c4 {[%clk 00:06:00]} {[%emt 00:04:10]} Nbc6 {[%clk 00:12:26]}
{[%emt 00:00:17]} 14. Qd2 {[%clk 00:06:04]} {[%emt 00:00:01]} Nd4 {[%clk
00:12:25]} {[%emt 00:00:06]} 15. Ra3 {[%clk 00:06:04]} {[%emt 00:00:05]} a5
{[%clk 00:12:02]} {[%emt 00:00:29]} 16. Rc1 {[%clk 00:04:38]} {[%emt 00:01:30]}
b6 {[%clk 00:10:47]} {[%emt 00:01:21]} 17. Nd5 {[%clk 00:03:52]} {[%emt
00:00:51]} Bxd5 {[%clk 00:09:55]} {[%emt 00:00:57]} 18. cxd5 {[%clk 00:03:31]}
{[%emt 00:00:26]} Qd7 {[%clk 00:09:54]} {[%emt 00:00:06]} 19. b5 {[%clk
00:03:22]} {[%emt 00:00:13]} Rac8 {[%clk 00:09:20]} {[%emt 00:00:40]} 20. Rac3
{[%clk 00:02:45]} {[%emt 00:00:42]} Rc5 {[%clk 00:09:21]} {[%emt 00:00:05]} 21.
Rxc5 {[%clk 00:02:35]} {[%emt 00:00:14]} dxc5 {[%clk 00:09:23]} {[%emt
00:00:03]} 22. Qg5 {[%clk 00:02:13]} {[%emt 00:00:27]} f6 {[%clk 00:09:06]}
{[%emt 00:00:22]} 23. Qg3 {[%clk 00:01:57]} {[%emt 00:00:20]} Ng6 {[%clk
00:08:15]} {[%emt 00:00:57]} 24. Nd2 {[%clk 00:01:54]} {[%emt 00:00:08]} Nf4
{[%clk 00:08:11]} {[%emt 00:00:08]} 25. Re1 {[%clk 00:01:07]} {[%emt 00:00:52]}
g6 {[%clk 00:07:20]} {[%emt 00:00:56]} 26. Nc4 {[%clk 00:00:55]} {[%emt
00:00:16]} Qd8 {[%emt 00:00:42]} 0-1

[Event "Open NK Rapid 2025"]
[Site "Helmond, Netherlands"]
[Date "2025.05.03"]
[Round "6.21"]
[White "Smeets, Kobe"]
[Black "Westveer, Riny"]
[Result "1-0"]
[TimeControl "15+5"]
[WhiteFideId "1063910"]
[BlackFideId "1088734"]
[WhiteElo "2192"]
[BlackElo "1876"]

1. e4 {[%clk 00:15:08]} {[%emt 00:00:01]} c6 {[%clk 00:15:09]} {[%emt
00:00:02]} 2. Nc3 {[%clk 00:15:10]} {[%emt 00:00:03]} d5 {[%clk 00:15:12]}
{[%emt 00:00:01]} 3. Nf3 {[%clk 00:15:14]} {[%emt 00:00:02]} Bg4 {[%clk
00:15:14]} {[%emt 00:00:02]} 4. h3 {[%clk 00:15:18]} {[%emt 00:00:02]} Bxf3
{[%clk 00:15:17]} {[%emt 00:00:02]} 5. Qxf3 {[%clk 00:15:21]} {[%emt 00:00:02]}
e6 {[%clk 00:15:17]} {[%emt 00:00:04]} 6. Be2 {[%clk 00:15:24]} {[%emt
00:00:03]} d4 {[%clk 00:14:47]} {[%emt 00:00:35]} 7. Nb1 {[%clk 00:15:27]}
{[%emt 00:00:01]} Nf6 {[%clk 00:14:30]} {[%emt 00:00:22]} 8. d3 {[%clk
00:15:29]} {[%emt 00:00:03]} Nbd7 {[%clk 00:14:29]} {[%emt 00:00:06]} 9. O-O
{[%clk 00:15:30]} {[%emt 00:00:04]} Be7 {[%clk 00:14:01]} {[%emt 00:00:33]} 10.
Qg3 {[%clk 00:15:27]} {[%emt 00:00:08]} O-O {[%clk 00:12:41]} {[%emt 00:01:26]}
11. Nd2 {[%clk 00:15:28]} {[%emt 00:00:04]} Qb8 {[%clk 00:12:08]} {[%emt
00:00:37]} 12. f4 {[%clk 00:15:27]} {[%emt 00:00:06]} Rd8 {[%clk 00:09:46]}
{[%emt 00:02:28]} 13. a4 {[%clk 00:15:23]} {[%emt 00:00:09]} b5 {[%clk
00:09:08]} {[%emt 00:00:42]} 14. Qf2 {[%clk 00:14:43]} {[%emt 00:00:45]} Nf8
{[%clk 00:08:01]} {[%emt 00:01:12]} 15. g4 {[%clk 00:14:39]} {[%emt 00:00:08]}
h6 {[%clk 00:07:20]} {[%emt 00:00:47]} 16. Kh1 {[%clk 00:13:29]} {[%emt
00:01:15]} c5 {[%clk 00:06:04]} {[%emt 00:01:22]} 17. g5 {[%clk 00:13:28]}
{[%emt 00:00:05]} hxg5 {[%clk 00:06:04]} {[%emt 00:00:06]} 18. fxg5 {[%clk
00:13:30]} {[%emt 00:00:03]} Ne8 {[%clk 00:05:47]} {[%emt 00:00:22]} 19. Qxf7+
{[%clk 00:13:30]} {[%emt 00:00:05]} Kh8 {[%clk 00:05:27]} {[%emt 00:00:24]} 20.
Qxe7 {[%clk 00:12:26]} {[%emt 00:01:09]} Ng6 {[%clk 00:03:39]} {[%emt
00:01:52]} 21. Qxe6 {[%clk 00:12:12]} {[%emt 00:00:19]} Qg3 {[%clk 00:03:35]}
{[%emt 00:00:10]} 22. Qg4 {[%clk 00:11:41]} {[%emt 00:00:37]} 1-0